bitfinex/quotes_SOLUSD_20230116
["timestamp","ask_amount","ask_price","bid_price","bid_amount"]
[1673895208620,20.0,23.488,23.461,27.45960895]
[1673895208829,20.0,23.488,23.462,37.0]
[1673895209058,20.0,23.488,23.463,20.0]
[1673895209353,20.0,23.488,23.464,21.05790624]
[1673895210188,20.0,23.488,23.463,17.0]
[1673895210613,24.79,23.48,23.463,17.0]
[1673895211011,21.46196354,23.479,23.454,122.20218601]
[1673895211229,137.2076,23.478,23.452,4.98867199]
[1673895211543,20.0,23.477,23.453,20.0]
[1673895211960,20.0,23.477,23.449,7.14800858]
[1673895212169,20.0,23.477,23.452,20.0]
[1673895213240,20.0,23.477,23.453,20.0]
[1673895213435,20.0,23.477,23.452,20.0]
[1673895213655,20.0,23.477,23.453,20.0]
[1673895214186,20.0,23.477,23.454,17.0]
[1673895214379,20.0,23.477,23.453,20.0]
[1673895214587,20.0,23.477,23.452,20.0]
[1673895215026,20.0,23.477,23.453,20.0]
[1673895215228,20.0,23.477,23.452,20.0]
[1673895215552,41.46196354,23.477,23.452,20.0]
[1673895215758,24.79,23.47,23.452,20.0]
[1673895215958,24.79,23.46,23.431,5.69056451]
[1673895216293,24.79,23.46,23.452,416.91494354]
[1673895217019,24.79,23.46,23.433,7.86209641]
[1673895217425,20.0,23.459,23.431,20.0]
[1673895217636,20.0,23.458,23.431,20.0]
[1673895217840,20.0,23.457,23.431,20.0]
[1673895218061,20.0,23.457,23.431,25.65328089]
[1673895218274,108.7873,23.456,23.431,25.65328089]
[1673895218678,20.0,23.455,23.431,25.65328089]
[1673895218893,108.7873,23.456,23.431,25.65328089]
[1673895219107,24.79,23.46,23.432,21.46196354]
[1673895219306,24.79,23.46,23.434,20.0]
[1673895219524,24.79,23.46,23.435,4.27590401]
[1673895220051,24.79,23.46,23.436,17.0]
[1673895220260,20.0,23.459,23.437,20.0]
[1673895220466,20.0,23.459,23.438,23.65233581]
[1673895220702,20.0,23.459,23.439,20.0]
[1673895220891,24.79,23.46,23.44,17.0]
[1673895221106,20.0,23.465,23.44,22.19633002]
[1673895221316,20.0,23.465,23.442,7.109568]
[1673895221530,20.0,23.465,23.443,17.0]
[1673895221958,20.0,23.465,23.442,17.0]
[1673895222163,20.0,23.465,23.443,20.0]
[1673895222375,20.0,23.465,23.444,17.0]
[1673895222578,41.46196354,23.465,23.444,17.0]
[1673895222784,20.0,23.465,23.444,17.0]
[1673895223533,115.0162,23.466,23.445,20.0]
[1673895223742,111.2698,23.473,23.447,5.17887398]
[1673895223955,111.2698,23.473,23.448,37.0]
[1673895224276,111.2698,23.473,23.449,25.78580891]
[1673895224464,111.2698,23.473,23.451,20.0]
[1673895224667,111.2698,23.473,23.453,4.57428763]
[1673895225110,111.2698,23.473,23.454,17.0]
[1673895225737,20.0,23.477,23.455,20.0]
[1673895225951,20.0,23.477,23.456,17.0]
[1673895226346,41.46196354,23.477,23.456,17.0]
[1673895226771,21.46196354,23.477,23.456,17.0]
[1673895226995,235.9522,23.478,23.458,4.79546091]
[1673895227323,235.9522,23.478,23.459,17.0]
[1673895227721,20.0,23.485,23.46,20.0]
[1673895227937,20.0,23.483,23.462,20.0]
[1673895228144,20.0,23.483,23.463,17.0]
[1673895228354,20.0,23.483,23.463,37.0]
[1673895229513,115.73,23.484,23.464,20.0]
[1673895229730,115.73,23.484,23.465,21.87701909]
[1673895230056,115.73,23.484,23.466,17.0]
[1673895230672,20.0,23.485,23.466,17.0]
[1673895231301,20.0,23.485,23.464,17.0]
[1673895231514,41.46196354,23.485,23.464,17.0]
[1673895232142,41.46196354,23.485,23.464,21.02733866]
[1673895232675,41.46196354,23.485,23.464,17.0]
[1673895232892,41.46196354,23.485,23.463,20.0]
[1673895233094,41.46196354,23.485,23.457,20.0]
[1673895233306,21.46196354,23.484,23.457,20.0]
[1673895233519,20.0,23.483,23.457,20.0]
[1673895233941,20.0,23.481,23.457,20.0]
[1673895235184,20.0,23.481,23.458,17.0]
[1673895235399,20.0,23.481,23.459,20.0]
[1673895235618,20.0,23.481,23.46,17.0]
[1673895235837,20.0,23.483,23.462,20.0]
[1673895236141,20.0,23.483,23.463,17.0]
[1673895236455,20.0,23.483,23.464,20.0]
[1673895236667,20.0,23.483,23.465,17.0]
[1673895237088,41.46196354,23.483,23.463,17.0]
[1673895237303,41.46196354,23.483,23.464,20.0]
[1673895237513,20.0,23.483,23.465,17.0]
[1673895237713,20.0,23.487,23.465,17.0]
[1673895237924,20.0,23.487,23.465,21.93747928]
[1673895238135,20.0,23.486,23.465,21.93747928]
[1673895238339,20.0,23.485,23.465,17.0]
[1673895240342,20.0,23.485,23.464,20.0]
[1673895240576,20.0,23.485,23.457,20.0]
[1673895240976,17.0,23.484,23.457,20.0]
[1673895241189,20.0,23.483,23.457,20.0]
[1673895241833,20.0,23.483,23.458,17.0]
[1673895242048,20.0,23.483,23.458,23.61496899]
[1673895242252,20.0,23.483,23.459,20.0]
[1673895242470,20.0,23.483,23.46,21.37119513]
[1673895242777,20.0,23.483,23.461,20.0]
[1673895242992,20.0,23.483,23.462,23.07344604]
[1673895243204,20.0,23.483,23.463,20.0]
[1673895243399,20.0,23.483,23.464,17.0]
[1673895245415,20.0,23.483,23.463,20.0]
[1673895245747,20.0,23.485,23.456,50.66821008]
[1673895245930,24.79,23.49,23.461,5.44530458]
[1673895246137,20.0,23.493,23.464,26.3079853]
[1673895246138,111.5903,23.492,23.464,26.3079853]
[1673895246350,20.0,23.49,23.466,20.0]
[1673895246568,20.0,23.49,23.467,20.0]
[1673895246770,20.0,23.49,23.468,17.0]
[1673895247174,20.0,23.49,23.469,20.0]
[1673895247386,20.0,23.49,23.47,17.0]
[1673895247820,20.0,23.49,23.471,20.0]
[1673895248227,20.0,23.49,23.472,17.0]
[1673895248860,20.0,23.49,23.473,20.0]
[1673895249197,20.0,23.49,23.474,17.0]
[1673895250560,111.5903,23.492,23.474,17.0]
[1673895251394,111.5903,23.492,23.474,44.17465197]
[1673895251593,20.0,23.515,23.474,44.17465197]
[1673895251802,20.0,23.498,23.474,44.17465197]
[1673895252249,24.68,23.51,23.48,24.79]
[1673895252436,24.68,23.51,23.481,37.0]
[1673895252651,24.68,23.51,23.482,20.0]
[1673895252862,24.68,23.51,23.483,37.0]
[1673895253087,20.0,23.509,23.483,37.0]
[1673895253932,20.0,23.508,23.483,37.0]
[1673895254120,20.0,23.507,23.483,37.0]
[1673895254323,20.0,23.507,23.484,20.0]
[1673895254534,20.0,23.507,23.485,37.0]
[1673895256762,20.0,23.507,23.486,4.55807942]
[1673895257073,20.0,23.507,23.487,17.0]
[1673895258115,20.0,23.507,23.488,20.0]
[1673895258324,24.62,23.52,23.49,24.65]
[1673895258547,24.62,23.52,23.492,4.68935955]
[1673895258736,24.62,23.52,23.492,20.0]
[1673895259172,20.0,23.509,23.48,24.79]
[1673895259501,20.0,23.509,23.471,5.65662251]
[1673895259700,20.0,23.508,23.473,6.71536213]
[1673895259897,20.0,23.507,23.474,24.91542]
[1673895260105,20.0,23.507,23.476,20.0]
[1673895260328,20.0,23.507,23.477,5.30211495]
[1673895260655,20.0,23.507,23.478,20.0]
[1673895260842,20.0,23.507,23.478,51.42131863]
[1673895261052,20.0,23.507,23.48,4.91616315]
[1673895261257,20.0,23.507,23.481,17.0]
[1673895261589,20.0,23.508,23.483,4.67424263]
[1673895261798,20.0,23.509,23.485,20.0]
[1673895262122,20.0,23.509,23.486,21.39936223]
[1673895262320,20.0,23.512,23.487,5.71480776]
[1673895262532,20.0,23.512,23.489,20.0]
[1673895262733,20.0,23.512,23.488,31.42131863]
[1673895262934,20.0,23.512,23.489,17.0]
[1673895263578,110.7792,23.514,23.489,17.0]
[1673895263788,110.7792,23.514,23.491,20.0]
[1673895264004,110.7792,23.514,23.492,37.0]
[1673895264202,110.7792,23.514,23.493,20.0]
[1673895264421,110.7792,23.514,23.494,17.0]
[1673895264634,110.7792,23.514,23.494,48.41611863]
[1673895264853,110.7792,23.514,23.495,31.7627853]
[1673895265051,20.0,23.519,23.497,20.0]
[1673895265262,20.0,23.519,23.495,31.7627853]
[1673895265263,132.7348,23.519,23.495,31.7627853]
[1673895265467,132.7348,23.519,23.498,31.7627853]
[1673895265900,132.7348,23.519,23.499,17.0]
[1673895266528,20.0,23.516,23.499,17.0]
[1673895266741,20.0,23.516,23.492,20.0]
[1673895267566,20.0,23.516,23.493,20.0]
[1673895267783,20.0,23.516,23.493,51.7627853]
[1673895267991,20.0,23.516,23.494,5.76824953]
[1673895268201,20.0,23.516,23.495,17.0]
[1673895269776,20.0,23.516,23.494,5.76824953]
[1673895271158,131.6352,23.53,23.5,24.78]
[1673895271482,131.6352,23.53,23.501,37.0]
[1673895271790,106.9852,23.53,23.502,7.03952511]
[1673895272101,106.9852,23.53,23.504,26.3076677]
[1673895272315,106.9852,23.53,23.505,20.0]
[1673895272630,106.9852,23.53,23.506,26.35190773]
[1673895272824,20.0,23.529,23.507,17.0]
[1673895273029,56.02807621,23.54,23.51,24.65]
[1673895273368,30.98807621,23.54,23.52,24.79]
[1673895273563,24.68,23.55,23.52,24.79]
[1673895273771,17.002438,23.541,23.521,23.04318051]
[1673895274106,17.002438,23.541,23.521,55.50320042]
[1673895274314,17.002438,23.541,23.522,53.3227853]
[1673895274531,17.002438,23.541,23.523,22.80607702]
[1673895274724,17.002438,23.541,23.523,38.46196354]
[1673895275051,17.002438,23.541,23.524,5.79012531]
[1673895275360,17.002438,23.541,23.525,17.0]
[1673895275794,17.002438,23.541,23.525,50.3227853]
[1673895276004,17.002438,23.541,23.527,4.44716159]
[1673895276218,17.002438,23.541,23.528,17.0]
[1673895277153,17.002438,23.541,23.522,24.62506682]
[1673895277366,17.002438,23.541,23.522,4.62506682]
[1673895277792,17.002438,23.541,23.523,41.46196354]
[1673895278002,17.002438,23.541,23.524,7.26066685]
[1673895278210,17.002438,23.541,23.524,21.46196354]
[1673895278405,17.002438,23.541,23.525,21.46196354]
[1673895278619,17.002438,23.541,23.527,5.23818006]
[1673895278830,17.002438,23.541,23.528,17.0]
[1673895280209,17.002438,23.541,23.527,21.46196354]
[1673895280418,17.002438,23.541,23.515,7.61234307]
[1673895280631,17.002438,23.541,23.516,20.0]
[1673895280826,17.002438,23.541,23.518,6.49325007]
[1673895281365,17.002438,23.541,23.519,20.0]
[1673895281786,44.79,23.54,23.511,12.74796622]
[1673895281974,20.0,23.539,23.512,20.0]
[1673895282189,23.0,23.538,23.511,7.84028622]
[1673895282395,20.0,23.537,23.511,20.0]
[1673895282713,20.0,23.536,23.5,24.78]
[1673895282931,20.0,23.536,23.503,21.46196354]
[1673895282932,24.68,23.53,23.503,21.46196354]
[1673895283145,20.0,23.529,23.503,28.74008547]
[1673895283363,20.0,23.528,23.504,20.0]
[1673895283574,20.0,23.528,23.505,6.86805583]
[1673895283781,20.0,23.528,23.505,21.46196354]
[1673895284013,20.0,23.528,23.501,27.00594788]
[1673895284314,20.0,23.528,23.502,4.89538216]
[1673895284501,20.0,23.528,23.503,20.0]
[1673895284715,20.0,23.528,23.503,41.46196354]
[1673895284917,20.0,23.528,23.503,21.46196354]
[1673895285126,20.0,23.528,23.502,4.21433488]
[1673895285349,20.0,23.528,23.5,24.78]
[1673895285350,20.0,23.526,23.503,21.46196354]
[1673895285568,20.0,23.526,23.494,4.54943807]
[1673895285569,20.0,23.525,23.494,4.54943807]
[1673895285780,130.8723,23.525,23.495,21.46196354]
[1673895285994,20.0,23.524,23.496,4.91732299]
[1673895286218,20.0,23.523,23.496,4.91732299]
[1673895286524,20.0,23.523,23.497,21.46196354]
[1673895287237,20.0,23.523,23.49,24.65]
[1673895287446,20.0,23.523,23.495,20.0]
[1673895287669,20.0,23.523,23.496,17.0]
[1673895287880,20.0,23.523,23.497,20.0]
[1673895288097,20.0,23.523,23.498,17.0]
[1673895288309,20.0,23.523,23.499,20.0]
[1673895288525,20.0,23.523,23.499,21.46196354]
[1673895288922,20.0,23.523,23.497,20.0]
[1673895289132,20.0,23.523,23.49,24.65]
[1673895289355,17.0,23.522,23.497,21.46196354]
[1673895289562,40.0,23.521,23.497,21.46196354]
[1673895289769,20.0,23.519,23.497,21.46196354]
[1673895289984,20.0,23.518,23.497,21.46196354]
[1673895290403,20.0,23.518,23.498,17.0]
[1673895290817,20.0,23.518,23.498,38.46196354]
[1673895291025,20.0,23.518,23.49,24.65]
[1673895291239,20.0,23.517,23.493,21.46196354]
[1673895292210,24.79,23.51,23.48,24.63]
[1673895292515,20.0,23.509,23.487,21.46196354]
[1673895292719,20.0,23.508,23.482,20.0]
[1673895292908,17.0,23.507,23.481,5.30300401]
[1673895293118,20.0,23.506,23.482,21.46196354]
[1673895293334,24.79,23.5,23.483,21.46196354]
[1673895293557,20.0,23.499,23.471,6.14623557]
[1673895293765,20.0,23.498,23.472,41.46196354]
[1673895293981,20.0,23.498,23.473,7.04930174]
[1673895294181,20.0,23.498,23.473,21.46196354]
[1673895294393,20.0,23.498,23.475,5.10505935]
[1673895294805,20.0,23.498,23.475,26.56702289]
[1673895295243,20.0,23.498,23.476,21.46196354]
[1673895296700,20.0,23.499,23.477,5.30794075]
[1673895296910,114.2806,23.504,23.478,20.0]
[1673895297131,114.2806,23.504,23.479,37.0]
[1673895297337,114.2806,23.504,23.479,17.0]
[1673895297548,20.0,23.503,23.48,21.46196354]
[1673895297759,24.65,23.5,23.473,4.56703041]
[1673895298082,20.0,23.499,23.478,21.46196354]
[1673895298275,20.0,23.498,23.478,21.46196354]
[1673895298812,20.0,23.503,23.479,62.90384273]
[1673895299025,20.0,23.503,23.479,57.0]
[1673895299355,20.0,23.503,23.48,21.46196354]
[1673895299569,20.0,23.503,23.481,37.0]
[1673895299886,20.0,23.503,23.482,20.0]
[1673895300095,114.2806,23.504,23.482,21.46196354]
[1673895300306,114.2806,23.504,23.483,20.0]
[1673895300514,114.2806,23.504,23.483,41.46196354]
[1673895300831,114.2806,23.504,23.484,21.46196354]
[1673895301029,114.2806,23.504,23.485,17.0]
[1673895301435,114.2806,23.504,23.484,38.46196354]
[1673895301645,114.2806,23.504,23.484,21.46196354]
[1673895301646,20.0,23.503,23.484,21.46196354]
[1673895301871,20.0,23.503,23.483,20.0]
[1673895302101,20.0,23.503,23.481,21.46196354]
[1673895302299,20.0,23.503,23.482,20.0]
[1673895302613,114.2806,23.504,23.483,21.46196354]
[1673895302827,111.3371,23.508,23.484,37.0]
[1673895303246,111.3371,23.508,23.485,42.92392708]
[1673895303441,111.3371,23.508,23.486,17.0]
[1673895303655,111.3371,23.508,23.491,20.0]
[1673895303862,111.3371,23.508,23.492,17.0]
[1673895304091,108.5472,23.517,23.493,20.0]
[1673895304281,108.5472,23.517,23.494,17.0]
[1673895304495,108.5472,23.517,23.494,38.46196354]
[1673895304698,108.5472,23.517,23.495,20.0]
[1673895304911,108.5472,23.517,23.496,17.0]
[1673895305123,108.5472,23.517,23.496,38.46196354]
[1673895305330,140.044,23.53,23.5,24.65]
[1673895305545,112.6325,23.523,23.501,37.0]
[1673895305801,140.044,23.53,23.502,20.0]
[1673895305988,115.364,23.53,23.503,37.0]
[1673895306176,132.6325,23.528,23.504,20.0]
[1673895306384,132.6325,23.528,23.505,17.0]
[1673895306831,132.6325,23.528,23.505,38.46196354]
[1673895307014,132.6325,23.528,23.505,17.0]
[1673895307231,132.6325,23.528,23.504,17.0]
[1673895307661,132.6325,23.528,23.503,20.0]
[1673895307872,132.6325,23.528,23.501,20.0]
[1673895308083,17.0,23.527,23.501,20.0]
[1673895308279,132.6325,23.528,23.501,20.0]
[1673895308280,132.6325,23.528,23.501,41.46196354]
[1673895308698,132.6325,23.528,23.502,20.0]
[1673895308924,132.6325,23.528,23.503,37.0]
[1673895309130,132.6325,23.528,23.504,20.0]
[1673895309331,112.6325,23.528,23.505,22.3956948]
[1673895309558,112.6325,23.528,23.506,20.0]
[1673895311244,20.0,23.535,23.513,37.0]
[1673895312616,20.0,23.535,23.514,20.0]
[1673895312810,108.0755,23.536,23.515,17.0]
[1673895313022,3.0,23.538,23.515,38.46196354]
[1673895313246,3.0,23.538,23.516,70.36842543]
[1673895313464,3.0,23.538,23.517,17.0]
[1673895313798,23.0,23.538,23.517,17.0]
[1673895313972,3.0,23.538,23.517,17.0]
[1673895314178,3.0,23.538,23.518,20.0]
[1673895314390,3.0,23.538,23.519,37.0]
[1673895314608,3.0,23.538,23.519,17.0]
[1673895314816,20.005687,23.538,23.515,21.46196354]
[1673895315251,20.005687,23.538,23.514,20.0]
[1673895315660,20.005687,23.538,23.515,20.0]
[1673895315877,20.005687,23.538,23.52,24.79]
[1673895316086,20.005687,23.538,23.521,20.0]
[1673895316420,20.005687,23.538,23.53,24.79]
[1673895316725,20.005687,23.538,23.531,20.0]
[1673895316931,20.0,23.568,23.532,17.0]
[1673895317132,131.2624,23.568,23.54,24.79]
[1673895317344,130.2624,23.568,23.541,37.0]
[1673895317545,19.0,23.568,23.55,24.79]
[1673895317755,24.68,23.59,23.551,20.0]
[1673895317967,120.54491738,23.595,23.551,20.0]
[1673895317968,39.66389429,23.562,23.551,53.4488428]
[1673895318187,39.66389429,23.562,23.552,20.0]
[1673895318391,39.66389429,23.562,23.553,17.0]
[1673895318600,39.66389429,23.562,23.553,48.8944228]
[1673895318916,39.66389429,23.562,23.552,20.0]
[1673895319134,24.68,23.58,23.546,36.06817667]
[1673895319345,24.29,23.57,23.547,4.90018]
[1673895319551,24.65,23.56,23.554,20.0]
[1673895319974,21.46196354,23.559,23.554,20.0]
[1673895320171,20.0,23.558,23.554,20.0]
[1673895320600,24.79,23.56,23.53,24.78]
[1673895320841,115.8657,23.568,23.54,24.78]
[1673895321245,115.8657,23.568,23.541,21.46196354]
[1673895321461,20.0,23.569,23.55,24.78]
[1673895321647,20.0,23.569,23.551,37.0]
[1673895322088,115.8657,23.583,23.56,24.79]
[1673895322280,24.68,23.59,23.561,20.0]
[1673895322491,20.0,23.594,23.561,87.74894374]
[1673895322700,20.0,23.589,23.562,51.37336355]
[1673895322916,20.0,23.589,23.57,24.79]
[1673895323116,20.0,23.594,23.571,20.0]
[1673895323340,0.54491738,23.595,23.572,21.89498]
[1673895323543,0.54491738,23.595,23.573,20.0]
[1673895323767,0.54491738,23.595,23.576,33.46717333]
[1673895324094,0.54491738,23.595,23.577,24.89394]
[1673895324287,0.54491738,23.595,23.578,17.0]
[1673895324486,0.54491738,23.595,23.579,20.0]
[1673895324710,0.54491738,23.595,23.589,1.0]
[1673895324922,0.54491738,23.595,23.594,1.0]
[1673895325235,0.54491738,23.595,23.594,21.46196354]
[1673895325458,16.958538,23.613,23.603,0.54491738]
[1673895325657,198.09461147,23.656,23.595,4.04097209]
[1673895325658,22.7795126,23.65,23.6,124.11]
[1673895325874,22.7795126,23.65,23.641,5.60646015]
[1673895326089,15.7795126,23.65,23.641,5.60646015]
[1673895326404,15.2795126,23.65,23.643,6.93440921]
[1673895326623,84.31459888,23.658,23.651,0.5]
[1673895326825,84.31459888,23.658,23.65,15.2795126]
[1673895326826,39.31469832,23.658,23.65,15.2795126]
[1673895327154,168.62919777,23.673,23.65,15.2795126]
[1673895327155,52.53660564,23.664,23.653,5.86306227]
[1673895327343,52.53660564,23.664,23.654,37.0]
[1673895327673,236.50449163,23.688,23.655,182.4857434]
[1673895327995,473.20560943,23.698,23.696,195.64058442]
[1673895328306,469.20560943,23.698,23.697,46.75039578]
[1673895328514,182.78331721,23.698,23.697,99.70876966]
[1673895328829,182.78331721,23.698,23.697,847.39562793]
[1673895329017,182.78331721,23.698,23.697,15.43359297]
[1673895329233,280.68126668,23.699,23.697,4.86916]
[1673895329438,92.20054247,23.699,23.697,44.68865891]
[1673895329665,92.20054247,23.699,23.697,109.021143]
[1673895329881,92.20054247,23.699,23.698,7.10525818]
[1673895330280,280.68126668,23.699,23.698,7.10525818]
[1673895330605,280.68126668,23.699,23.696,188.64417739]
[1673895330806,92.20054247,23.699,23.697,4.86916]
[1673895331018,16.59300354,23.698,23.694,19.935742]
[1673895331225,16.59300354,23.698,23.667,70.98361134]
[1673895331436,123.8,23.69,23.659,71.56215173]
[1673895331652,198.48126668,23.699,23.698,137.85699646]
[1673895331861,21.46196354,23.689,23.659,70.56215173]
[1673895332097,21.46196354,23.689,23.637,229.16821326]
[1673895332098,87.75586021,23.68,23.637,229.16821326]
[1673895332291,159.32716933,23.67,23.614,276.56272441]
[1673895332492,124.35,23.67,23.656,9.56480582]
[1673895333234,25.04,23.67,23.656,9.56480582]
[1673895333853,124.26,23.67,23.656,9.56480582]
[1673895334383,124.26,23.67,23.631,206.3406094]
[1673895334710,124.26,23.67,23.621,78.79995843]
[1673895334711,123.8,23.64,23.621,78.79995843]
[1673895335025,24.65,23.63,23.621,69.23515343]
[1673895335224,99.12,23.64,23.623,36.96029776]
[1673895335436,4.92454,23.639,23.624,5.73091232]
[1673895335658,24.65,23.63,23.624,25.00581061]
[1673895335883,29.57454,23.63,23.624,25.00581061]
[1673895336199,29.57454,23.63,23.621,69.23515343]
[1673895336200,4.92454,23.629,23.621,69.23515343]
[1673895336822,17.0,23.628,23.621,23.79958399]
[1673895337238,20.0,23.627,23.621,23.79958399]
[1673895337564,17.0,23.626,23.621,23.79958399]
[1673895337758,24.92454,23.625,23.621,23.79958399]
[1673895337959,21.92454,23.624,23.605,71.70930571]
[1673895338170,21.92454,23.624,23.595,5.4622956]
[1673895338171,124.01,23.62,23.606,147.59991686]
[1673895338404,20.0,23.619,23.606,147.59991686]
[1673895338596,4.92454,23.619,23.606,147.59991686]
[1673895339033,1.35358884,23.62,23.606,147.59991686]
[1673895339246,129.2,23.654,23.631,135.66911808]
[1673895339456,20.0,23.619,23.606,147.59991686]
[1673895339650,4.92454,23.618,23.606,87.59991686]
[1673895339863,24.92454,23.618,23.606,87.59991686]
[1673895340174,24.92454,23.618,23.607,20.0]
[1673895340815,20.0,23.617,23.606,87.59991686]
[1673895341027,24.92454,23.616,23.606,87.59991686]
[1673895341222,4.92454,23.615,23.606,87.59991686]
[1673895341430,4.92454,23.615,23.606,7.59991686]
[1673895341661,24.92454,23.615,23.606,0.00991686]
[1673895341873,37.0,23.614,23.606,0.00991686]
[1673895342082,4.92454,23.613,23.606,0.00991686]
[1673895342298,37.0,23.612,23.606,0.00991686]
[1673895342505,24.92454,23.611,23.575,71.78558021]
[1673895342819,165.68454,23.61,23.575,71.78558021]
[1673895343029,24.92454,23.609,23.575,71.78558021]
[1673895343219,4.92454,23.608,23.59,39.52924523]
[1673895343433,20.0,23.615,23.61,18.79649532]
[1673895343656,20.0,23.615,23.61,0.00195532]
[1673895343863,4.92454,23.614,23.61,0.00195532]
[1673895344806,4.92454,23.614,23.611,86.51341192]
[1673895345022,4.92454,23.614,23.611,45.66770002]
[1673895345210,4.92454,23.614,23.612,45.66770002]
[1673895345634,4.92454,23.614,23.613,32.69106394]
[1673895345846,4.92454,23.614,23.613,73.53677584]
[1673895346056,4.92454,23.614,23.613,85.72474526]
[1673895346294,24.79,23.63,23.615,4.92454]
[1673895346481,4.92454,23.629,23.616,24.87574555]
[1673895346815,4.92454,23.629,23.62,29.54454]
[1673895347151,4.92454,23.629,23.62,45.66917275]
[1673895347343,4.92454,23.629,23.621,17.0]
[1673895347530,4.92454,23.629,23.621,29.70812728]
[1673895347736,4.92454,23.629,23.622,44.50731075]
[1673895347962,99.16,23.64,23.639,38.93613881]
[1673895348294,4.92454,23.64,23.639,38.93613881]
[1673895348915,24.68,23.65,23.639,38.93613881]
[1673895349230,4.92454,23.649,23.639,38.93613881]
[1673895349439,20.0,23.658,23.64,17.0]
[1673895349654,24.65,23.65,23.639,38.93613881]
[1673895350482,20.0,23.658,23.64,49.82812728]
[1673895350693,4.92454,23.657,23.64,17.0]
[1673895350917,24.79,23.65,23.64,17.0]
[1673895351134,24.79,23.65,23.639,38.93613881]
[1673895351532,24.79,23.65,23.64,32.82812728]
[1673895351746,20.0,23.649,23.64,32.82812728]
[1673895352190,20.0,23.648,23.639,38.93613881]
[1673895352397,20.0,23.647,23.639,38.93613881]
[1673895352584,20.0,23.646,23.61,0.00195532]
[1673895352924,24.68,23.63,23.612,4.88669]
[1673895353130,20.0,23.628,23.612,4.88669]
[1673895353338,20.0,23.628,23.613,28.63481001]
[1673895353339,24.65,23.62,23.613,28.63481001]
[1673895353550,20.0,23.619,23.614,4.88627]
[1673895354183,20.0,23.618,23.614,4.88627]
[1673895354392,20.0,23.616,23.61,0.00195532]
[1673895354594,20.0,23.614,23.592,71.19444274]
[1673895354802,24.79,23.61,23.592,71.19444274]
[1673895355428,24.79,23.61,23.589,71.56874568]
[1673895355651,20.0,23.624,23.592,26.27256484]
[1673895355866,20.0,23.624,23.597,58.37077159]
[1673895356182,20.0,23.624,23.591,71.50821321]
[1673895356183,24.65,23.61,23.591,71.50821321]
[1673895356372,24.65,23.61,23.592,30.73589818]
[1673895356808,20.0,23.624,23.597,30.73589818]
[1673895357023,24.68,23.61,23.597,30.73589818]
[1673895357227,24.68,23.61,23.597,43.012352]
[1673895357444,24.68,23.61,23.586,71.71662224]
[1673895358070,20.0,23.624,23.597,50.73589818]
[1673895358286,24.79,23.62,23.597,20.0]
[1673895358503,24.79,23.62,23.589,71.56874568]
[1673895358708,24.79,23.61,23.589,71.56874568]
[1673895359643,17.0,23.609,23.586,71.71662224]
[1673895359856,24.79,23.61,23.586,71.71662224]
[1673895360064,24.79,23.61,23.587,43.532352]
[1673895360287,24.79,23.61,23.586,109.52340717]